bitfinex-derivatives/quotes_SOLF0:USTF0_20241012
["timestamp","ask_amount","ask_price","bid_price","bid_amount"]
[1728718718071,16.6436,145.66,145.63,8.45]
[1728718718273,3.4337,145.65,145.63,8.45]
[1728718719975,3.4337,145.65,145.61,4.7621]
[1728718720174,3.4337,145.65,145.62,8.45]
[1728718721472,3.4337,145.65,145.62,51.45]
[1728718723367,3.4337,145.65,145.62,54.8844]
[1728718725476,4.76,145.66,145.62,54.8844]
[1728718725682,8.1936,145.66,145.62,54.8844]
[1728718726978,3.4338,145.65,145.62,54.8844]
[1728718727383,3.4338,145.65,145.62,11.8844]
[1728718733486,3.4338,145.65,145.62,54.8844]
[1728718735582,3.4339,145.64,145.62,51.45]
[1728718735778,4.76,145.66,145.62,51.45]
[1728718736179,3.4338,145.65,145.62,51.45]
[1728718739090,3.4338,145.65,145.62,43.0]
[1728718739296,3.4338,145.65,145.62,8.45]
[1728718745196,3.4338,145.65,145.62,51.45]
[1728718746189,3.4338,145.65,145.62,43.0]
[1728718746190,3.4341,145.64,145.62,43.0]
[1728718746387,4.74,145.63,145.62,43.0]
[1728718747399,8.1742,145.63,145.62,43.0]
[1728718749700,4.74,145.63,145.62,43.0]
[1728718749905,4.74,145.63,145.62,51.45]
[1728718757606,4.74,145.63,145.62,56.58824736]
[1728718762919,4.74,145.63,145.62,13.58824736]
[1728718763514,8.1742,145.63,145.59,3.435]
[1728718763714,8.1742,145.63,145.62,5.14803196]
[1728718766623,8.1742,145.63,145.62,5.15229224]
[1728718768618,4.74,145.63,145.62,5.15229224]
[1728718769020,4.74,145.63,145.62,48.15229224]
[1728718770118,4.74,145.63,145.62,43.0]
[1728718770417,4.74,145.63,145.62,48.15392372]
[1728718773513,4.74,145.63,145.62,43.0]
[1728718774117,4.74,145.63,145.62,48.15612177]
[1728718780515,4.74,145.63,145.62,43.0]
[1728718780725,4.74,145.63,145.62,5.15855562]
[1728718783827,4.74,145.63,145.61,3.4346]
[1728718784329,4.74,145.63,145.62,5.15980607]
[1728718784827,4.74,145.63,145.61,3.4346]
[1728718785030,4.74,145.63,145.62,5.15988339]
[1728718785929,4.74,145.63,145.62,5.15996117]
[1728718786830,8.154,145.64,145.63,38.26]
[1728718787028,8.154,145.64,145.63,43.41996117]
[1728718788032,8.154,145.64,145.63,43.42002434]
[1728718791132,4.72,145.64,145.63,43.42002434]
[1728718791329,4.72,145.64,145.63,46.85427541]
[1728718791525,4.72,145.64,145.63,43.42007541]
[1728718792732,6.0264,145.65,145.64,14.38]
[1728718792938,6.0264,145.65,145.64,19.54007541]
[1728718794135,4.72,145.65,145.64,19.54007541]
[1728718797940,4.72,145.65,145.64,14.38]
[1728718798141,4.72,145.65,145.64,19.53919134]
[1728718798639,4.72,145.65,145.64,5.15919134]
[1728718800850,4.72,145.65,145.62,11.8843]
[1728718801339,4.72,145.65,145.63,5.15900559]
[1728718801544,4.72,145.65,145.64,5.15900559]
[1728718804441,11.8835,145.66,145.65,10.56]
[1728718804647,11.8835,145.66,145.65,1.12]
[1728718804648,16.6035,145.66,145.65,1.12]
[1728718804848,16.6035,145.66,145.65,6.27866799]
[1728718807757,11.8835,145.66,145.65,6.27866799]
[1728718807947,16.6035,145.66,145.65,6.27866799]
[1728718808251,8.1535,145.66,145.65,6.27866799]
[1728718810357,7.1535,145.66,145.65,6.27866799]
[1728718814650,4.72,145.66,145.65,6.27866799]
[1728718816455,8.1535,145.66,145.65,6.27866799]
[1728718817465,8.1535,145.66,145.65,1.12]
[1728718817764,8.1535,145.66,145.65,6.2776171]
[1728718820261,16.6035,145.66,145.65,6.2776171]
[1728718820979,16.6035,145.66,145.65,6.27734372]
[1728718824073,16.6035,145.66,145.65,1.12]
[1728718824278,16.6035,145.66,145.65,6.2774675]
[1728718824476,16.6035,145.66,145.65,1.12]
[1728718824977,16.6035,145.66,145.65,6.27754601]
[1728718825474,13.17,145.66,145.65,6.27754601]
[1728718827371,16.6035,145.66,145.65,6.27754601]
[1728718827569,16.6035,145.66,145.65,1.12]
[1728718827772,16.6035,145.66,145.65,6.27765364]
[1728718830880,16.6035,145.66,145.65,1.12]
[1728718831183,16.6035,145.66,145.65,6.27765692]
[1728718834173,16.6035,145.66,145.65,1.12]
[1728718834383,16.6035,145.66,145.65,6.27787622]
[1728718834882,16.6035,145.66,145.65,6.27791284]
[1728718837777,16.6035,145.66,145.65,1.12]
[1728718837981,16.6035,145.66,145.65,6.27826327]
[1728718840483,16.6035,145.66,145.65,6.27843694]
[1728718841181,16.6035,145.66,145.65,1.12]
[1728718841387,16.6035,145.66,145.65,6.27843671]
[1728718842579,16.6035,145.66,145.65,6.27866551]
[1728718844473,4.7,145.66,145.65,6.27866551]
[1728718844886,4.7,145.66,145.65,1.12]
[1728718845085,4.7,145.66,145.65,6.27832058]
[1728718846577,16.5835,145.66,145.65,6.27832058]
[1728718848078,8.1335,145.66,145.65,6.27832058]
[1728718849083,4.7,145.66,145.65,6.27832058]
[1728718849989,12.00842,145.67,145.65,6.27832058]
[1728718850289,4.24167942,145.66,145.65,1.12]
[1728718861896,7.67517942,145.66,145.65,1.12]
[1728718862190,7.67517942,145.66,145.65,6.21372543]
[1728718862796,3.4335,145.66,145.65,6.21372543]
[1728718862995,8.1335,145.66,145.65,6.21372543]
[1728718863493,16.5835,145.66,145.65,6.21372543]
[1728718864296,16.5835,145.66,145.65,1.12]
[1728718864503,16.5835,145.66,145.65,6.2137226]
[1728718864691,16.5835,145.66,145.65,1.12]
[1728718864894,16.5835,145.66,145.65,6.2137226]
[1728718865292,16.5835,145.66,145.65,5.0937226]
[1728718867696,16.5835,145.66,145.65,5.09406397]
[1728718870799,8.1335,145.66,145.65,5.09406397]
[1728718871003,8.1335,145.66,145.62,3.4343]
[1728718871205,8.1335,145.66,145.63,5.09366628]
[1728718871502,8.1335,145.66,145.64,5.09366628]
[1728718871708,8.1335,145.66,145.65,5.09366628]
[1728718874298,8.1335,145.66,145.62,3.4343]
[1728718874505,8.1335,145.66,145.65,5.09365972]
[1728718874704,8.1335,145.66,145.62,3.4343]
[1728718874899,8.1335,145.66,145.65,5.09366307]
[1728718876597,8.1335,145.66,145.65,2.94096307]
[1728718876598,16.5835,145.66,145.65,2.94096307]
[1728718876897,3.434,145.64,145.61,1.3541]
[1728718877102,4.7,145.63,145.61,1.3541]
[1728718879710,4.7,145.63,145.61,4.7886]
[1728718880007,4.7,145.63,145.61,13.2386]
[1728718887908,4.7,145.63,145.61,9.8041]
[1728718888103,4.7,145.63,145.62,11.8844]
[1728718888707,4.7,145.63,145.62,16.94907914]
[1728718890412,3.4336,145.66,145.62,16.94907914]
[1728718890614,4.7,145.65,145.63,5.06467914]
[1728718890916,4.7,145.65,145.62,11.8844]
[1728718891116,4.7,145.65,145.64,5.06459113]
[1728718894421,4.7,145.65,145.62,3.3744]
[1728718894622,4.7,145.65,145.64,5.06426811]
[1728718897825,4.7,145.65,145.64,5.06405257]
[1728718902532,4.7,145.65,145.62,3.3744]
[1728718902723,4.7,145.65,145.64,5.0637618]
[1728718904627,4.7,145.65,145.64,5.06357904]
[1728718907130,16.5837,145.65,145.64,5.06357904]
[1728718911542,16.5837,145.65,145.64,5.06365434]
[1728718914233,13.15,145.65,145.64,5.06365434]
[1728718914939,13.15,145.65,145.64,5.06386006]
[1728718924441,13.15,145.65,145.61,4.7887]
[1728718924746,13.15,145.65,145.62,5.06458292]
[1728718924946,13.15,145.65,145.63,5.06458292]
[1728718925139,13.15,145.65,145.64,5.06458292]
[1728718927445,13.15,145.65,145.61,4.7887]
[1728718927749,13.15,145.65,145.62,5.06475257]
[1728718927948,13.15,145.65,145.63,5.06475257]
[1728718928154,13.15,145.65,145.64,5.06475257]
[1728718934152,13.15,145.65,145.61,4.7887]
[1728718935142,13.15,145.65,145.62,5.06537029]
[1728718935546,13.15,145.65,145.63,5.06537029]
[1728718935857,13.15,145.65,145.64,5.06537029]
[1728718936359,16.5837,145.65,145.64,5.06537029]
[1728718944559,8.1337,145.65,145.64,5.06537029]
[1728718944858,4.7,145.65,145.61,4.7886]
[1728718945067,13.15,145.65,145.64,5.06656808]
[1728718946065,3.55832,145.67,145.64,5.06656808]
[1728718946257,4.7,145.66,145.65,5.06646143]
[1728718951163,4.7,145.66,145.62,11.8843]
[1728718951358,4.7,145.66,145.63,5.06576197]
[1728718951559,4.7,145.66,145.64,5.06576197]
[1728718951759,4.7,145.66,145.65,5.06576197]
[1728718952962,12.00832,145.67,145.65,5.06576197]
[1728718953267,4.7,145.66,145.62,11.8843]
[1728718953566,4.7,145.66,145.63,5.06575602]
[1728718953761,4.7,145.66,145.64,5.06575602]
[1728718953968,4.7,145.66,145.65,5.06575602]
[1728718954362,4.7,145.66,145.62,11.8843]
[1728718954864,4.7,145.66,145.63,5.06579682]
[1728718955064,4.7,145.66,145.64,5.06579682]
[1728718955367,4.7,145.66,145.65,5.06579682]
[1728718957473,13.15,145.66,145.65,5.06579682]
[1728718957964,13.15,145.66,145.62,3.4343]
[1728718958165,13.15,145.66,145.63,5.06545613]
[1728718958370,13.15,145.66,145.64,5.06545613]
[1728718958671,13.15,145.66,145.65,5.06545613]
[1728718961173,13.15,145.66,145.62,3.4343]
[1728718961365,13.15,145.66,145.63,5.06544018]
[1728718961569,13.15,145.66,145.64,5.06543196]
[1728718961768,13.15,145.66,145.65,5.06543196]
[1728718962873,13.15,145.66,145.62,3.4343]
[1728718963174,13.15,145.66,145.63,5.06532481]
[1728718963367,13.15,145.66,145.64,5.06532481]
[1728718963573,13.15,145.66,145.65,5.06532481]
[1728718964971,13.15,145.66,145.62,3.4343]
[1728718965169,13.15,145.66,145.63,5.06539161]
[1728718965376,13.15,145.66,145.64,5.06539161]
[1728718966072,13.15,145.66,145.65,5.06539161]
[1728718966273,4.7,145.66,145.65,5.06539161]
[1728718968572,4.7,145.66,145.62,3.4343]
[1728718968770,4.7,145.66,145.63,5.06531934]
[1728718968965,4.7,145.66,145.64,5.06531934]
[1728718969168,4.7,145.66,145.65,5.06531934]
[1728718972176,4.7,145.66,145.62,3.4343]
[1728718972377,4.7,145.66,145.65,5.06540804]
[1728718972578,4.7,145.66,145.63,5.06540804]
[1728718972773,4.7,145.66,145.65,5.06540804]
[1728718973774,4.7,145.66,145.62,3.4343]
[1728718973980,4.7,145.66,145.63,5.06565985]
[1728718974285,4.7,145.66,145.64,5.06565985]
[1728718974479,4.7,145.66,145.65,5.06565985]
[1728718979387,4.7,145.66,145.62,3.4343]
[1728718979688,4.7,145.66,145.63,5.06559181]
[1728718979991,4.7,145.66,145.64,5.06559181]
[1728718980187,4.7,145.66,145.65,5.06559181]
[1728718980592,13.15,145.66,145.65,5.06559181]
[1728718981792,13.15,145.66,145.62,3.4343]
[1728718982090,13.15,145.66,145.65,5.06559127]
[1728718985294,13.15,145.66,145.62,3.4343]
[1728718985897,13.15,145.66,145.63,5.06559235]
[1728718986098,13.15,145.66,145.64,5.06559235]
[1728718986394,13.15,145.66,145.65,5.06559235]
[1728718988189,4.7,145.66,145.65,5.06559235]
[1728718988990,4.7,145.66,145.65,5.06529682]
[1728718992300,4.7,145.66,145.62,3.4343]
[1728718992806,4.7,145.66,145.63,5.0653468]
[1728718993101,4.7,145.66,145.64,5.0653468]
[1728718993291,4.7,145.66,145.65,5.0653468]
[1728718996103,4.7,145.66,145.65,5.06520616]
[1728718996298,4.7,145.66,145.62,3.4343]
[1728718996704,4.7,145.66,145.63,5.06516738]
[1728718996902,4.7,145.66,145.64,5.06516738]
[1728718997108,4.7,145.66,145.65,5.06516738]
[1728718999606,4.7,145.66,145.62,3.4343]
[1728718999802,4.7,145.66,145.63,5.06504291]
[1728719000008,4.7,145.66,145.64,5.06504291]
[1728719000213,4.7,145.66,145.65,5.06504291]
[1728719003011,8.1335,145.66,145.65,5.06504291]
[1728719005314,16.5835,145.66,145.65,5.06504291]
[1728719006918,16.5835,145.66,145.61,4.7887]
[1728719007115,8.45,145.65,145.62,5.06473134]
[1728719007315,8.45,145.65,145.61,4.7887]
[1728719007509,8.45,145.65,145.62,5.06486787]
[1728719007713,8.45,145.65,145.63,5.06486787]
[1728719007919,8.45,145.65,145.64,5.06486787]
[1728719009111,105.30101031,145.66,145.64,5.06486787]
[1728719009312,105.30101031,145.66,145.65,5.06486787]
[1728719010519,105.30101031,145.66,145.61,13.2387]
[1728719010713,105.30101031,145.66,145.62,5.06550675]
[1728719010918,105.30101031,145.66,145.63,5.06550675]
[1728719011121,105.30101031,145.66,145.64,5.06550675]
[1728719011421,105.30101031,145.66,145.65,5.06550675]
[1728719011724,93.41751031,145.66,145.65,5.06550675]
[1728719014021,93.41751031,145.66,145.62,3.4344]
[1728719014223,93.41751031,145.66,145.63,5.06636916]
[1728719014421,93.41751031,145.66,145.64,5.06636916]
[1728719014621,93.41751031,145.66,145.65,5.06636916]
[1728719018129,93.41751031,145.66,145.62,3.4344]
[1728719018325,93.41751031,145.66,145.65,5.06615119]
[1728719021230,93.41751031,145.66,145.62,3.4344]
[1728719021531,93.41751031,145.66,145.65,5.0662809]
[1728719023133,93.41751031,145.66,145.62,3.4344]
[1728719023334,93.41751031,145.66,145.65,5.06619181]
[1728719025128,93.41751031,145.66,145.62,3.4344]
[1728719025425,93.41751031,145.66,145.63,5.06633758]
[1728719025628,93.41751031,145.66,145.64,5.06633758]
[1728719025825,93.41751031,145.66,145.65,5.06633758]
[1728719028848,93.41751031,145.66,145.62,3.4344]
[1728719029040,93.41751031,145.66,145.65,5.06629476]
[1728719029243,93.41751031,145.66,145.62,3.4344]
[1728719029451,93.41751031,145.66,145.65,5.06611734]
[1728719032546,93.41751031,145.66,145.62,3.4344]
[1728719032944,93.41751031,145.66,145.63,5.06588864]
[1728719033134,93.41751031,145.66,145.64,5.06588864]
[1728719033340,93.41751031,145.66,145.65,5.06588864]
[1728719036145,93.41751031,145.66,145.62,3.4344]
[1728719036351,93.41751031,145.66,145.63,5.06563678]
[1728719036551,93.41751031,145.66,145.64,5.06563678]
[1728719036849,93.41751031,145.66,145.65,5.06563678]
[1728719039653,4.7,145.66,145.62,3.4344]
[1728719040057,4.7,145.66,145.63,5.06578594]
[1728719040255,4.7,145.66,145.64,5.06578594]
[1728719040458,4.7,145.66,145.65,5.06578594]
[1728719042263,13.15,145.66,145.65,5.06578594]
[1728719042465,16.5835,145.66,145.65,5.0658921]
[1728719042767,13.15,145.66,145.65,5.0658921]
[1728719046062,13.15,145.66,145.62,3.4344]
[1728719046255,13.15,145.66,145.63,5.06612304]
[1728719046564,13.15,145.66,145.64,5.06612304]
[1728719046765,13.15,145.66,145.65,5.06612304]
[1728719048967,4.7,145.66,145.65,5.06612304]
[1728719050467,4.7,145.66,145.65,5.06610692]
[1728719051063,0.12502,145.67,145.65,13.51610692]
[1728719051267,4.82502,145.67,145.66,5.06610692]
[1728719052067,0.12502,145.67,145.66,5.06610692]
[1728719053667,0.12502,145.67,145.65,8.45]
[1728719054358,0.12502,145.67,145.66,5.06388571]
[1728719057465,0.12502,145.67,145.65,11.8835]
[1728719057864,0.12502,145.67,145.66,5.06264511]
[1728719061076,0.12502,145.67,145.65,11.8837]
[1728719061274,0.12502,145.67,145.66,5.06191672]
[1728719068381,0.12502,145.67,145.65,11.8837]
[1728719068581,0.12502,145.67,145.66,5.05908534]
[1728719072078,0.12502,145.67,145.65,11.8837]
[1728719072283,0.12502,145.67,145.66,5.05828349]
[1728719072681,0.12502,145.67,145.66,5.05823147]
[1728719082387,0.12502,145.67,145.65,11.8837]
[1728719082585,0.12502,145.67,145.66,5.05699436]
[1728719084681,0.12502,145.67,145.64,8.45]
[1728719085582,0.12502,145.67,145.66,5.05707176]
[1728719087091,0.12502,145.67,145.64,8.45]
[1728719087288,0.12502,145.67,145.66,5.05697353]
[1728719092688,0.12502,145.67,145.66,5.05762191]
[1728719096194,0.12502,145.67,145.64,11.8839]
[1728719096394,0.12502,145.67,145.66,5.05818016]
[1728719096595,0.12502,145.67,145.65,5.05818016]
[1728719096896,0.12502,145.67,145.66,5.05818016]
[1728719101803,0.12502,145.67,145.64,11.8839]
[1728719102003,0.12502,145.67,145.65,5.0587738]
[1728719102301,0.12502,145.67,145.64,11.8839]
[1728719102302,0.12502,145.67,145.66,5.0587738]
[1728719104804,3.55822,145.67,145.66,5.0587738]
[1728719105001,3.55822,145.67,145.62,8.45]
[1728719105404,3.55822,145.67,145.63,5.05936552]
[1728719105705,3.55822,145.67,145.64,5.05936552]
[1728719106001,3.55822,145.67,145.62,8.45]
[1728719106207,3.55822,145.67,145.63,8.49326015]
[1728719106396,3.55822,145.67,145.64,5.05926015]
[1728719106602,3.55822,145.67,145.65,5.05926015]
[1728719106801,3.55822,145.67,145.66,5.05926015]
[1728719111804,3.55822,145.67,145.62,11.8843]
[1728719112011,3.55822,145.67,145.63,5.06091563]
[1728719112207,3.55822,145.67,145.64,5.06091563]
[1728719112509,3.55822,145.67,145.65,5.06091563]
[1728719112709,3.55822,145.67,145.66,5.06091563]
[1728719114099,12.00822,145.67,145.66,5.06091563]
[1728719115110,8.57502,145.67,145.61,75.65571664]
[1728719115406,3.4335,145.66,145.61,75.65571664]
[1728719115609,4.7,145.65,145.62,5.06356637]
[1728719115908,4.7,145.65,145.63,5.06356637]
[1728719116112,4.7,145.65,145.64,5.06356637]
[1728719118615,4.7,145.65,145.64,5.06286606]
[1728719120315,4.7,145.65,145.62,8.45]
[1728719120517,4.7,145.65,145.63,5.06204172]
[1728719120715,4.7,145.65,145.64,5.06204172]
[1728719121816,4.7,145.65,145.62,8.45]
[1728719122018,4.7,145.65,145.63,16.94560567]
[1728719122314,4.7,145.65,145.64,5.06160567]
[1728719125621,4.7,145.65,145.62,11.8843]
[1728719125819,4.7,145.65,145.64,5.06064562]
[1728719126310,13.15,145.65,145.64,5.06064562]
[1728719128921,4.7,145.65,145.64,5.06064562]
[1728719131831,4.7,145.65,145.62,11.8843]
[1728719132019,4.7,145.65,145.63,5.0599791]
[1728719132223,4.7,145.65,145.64,5.0599791]
[1728719135232,4.7,145.65,145.62,11.8843]
[1728719135524,4.7,145.65,145.63,5.05957715]
[1728719135726,4.7,145.65,145.64,5.05957715]
[1728719136324,4.7,145.65,145.62,11.8843]
[1728719136526,4.7,145.65,145.63,5.05946436]
[1728719136825,4.7,145.65,145.64,5.05946436]
[1728719142238,4.7,145.65,145.62,11.8843]
[1728719142445,4.7,145.65,145.63,5.05911575]
[1728719142734,4.7,145.65,145.64,5.05911575]
[1728719145539,4.7,145.65,145.62,11.8843]
[1728719145738,4.7,145.65,145.64,5.05928062]
[1728719147049,4.7,145.65,145.62,11.8843]
[1728719147245,4.7,145.65,145.63,5.05932002]
[1728719147544,4.7,145.65,145.64,5.05932002]
[1728719149044,4.7,145.65,145.62,11.8843]
[1728719149248,4.7,145.65,145.64,5.05950134]
[1728719155549,4.7,145.65,145.61,67.20349633]
[1728719155751,4.7,145.65,145.64,5.0599174]
[1728719155946,4.7,145.65,145.64,5.0599176]
[1728719156947,16.5835,145.66,145.64,5.0599176]
[1728719157148,16.5835,145.66,145.65,5.0599176]
[1728719160545,13.15,145.66,145.61,63.76899633]
[1728719160751,3.4344,145.62,145.61,1.3541]
[1728719160946,3.4344,145.62,145.61,6.41465153]
[1728719161444,16.5843,145.63,145.61,1.3541]
[1728719161757,16.5843,145.63,145.62,5.06036106]
[1728719164950,16.5843,145.63,145.61,1.3541]
[1728719165146,16.5843,145.63,145.62,5.05855456]
[1728719165455,16.5843,145.63,145.61,1.3541]
[1728719168151,8.45,145.62,145.61,1.3541]
[1728719168453,11.8844,145.62,145.61,6.41133225]
[1728719170863,4.7,145.64,145.61,6.41133225]
[1728719171059,4.7,145.64,145.62,5.05723225]
[1728719171261,4.7,145.64,145.63,5.05723225]
[1728719171558,4.7,145.64,145.61,1.3541]
[1728719171754,4.7,145.64,145.63,5.05530732]
[1728719172153,4.7,145.64,145.63,5.0552542]
[1728719173064,4.7,145.64,145.61,1.3541]
[1728719173363,4.7,145.64,145.62,5.05542229]
[1728719173562,4.7,145.64,145.63,5.05542229]
[1728719174964,13.15,145.64,145.61,1.3541]
[1728719175167,13.15,145.64,145.63,5.05558613]
[1728719175359,13.15,145.64,145.61,1.3541]
[1728719175560,13.15,145.64,145.63,5.05574622]
[1728719178265,13.15,145.64,145.61,1.3541]
[1728719178953,13.15,145.64,145.62,5.05655532]
[1728719179155,13.15,145.64,145.63,5.05655532]
[1728719181158,4.7,145.64,145.63,5.05655532]
[1728719181461,13.15,145.64,145.63,5.05655532]
[1728719181665,13.15,145.64,145.61,1.3541]
[1728719181865,13.15,145.64,145.63,5.0577609]
[1728719182068,13.15,145.64,145.62,5.0577609]
[1728719182267,13.15,145.64,145.63,5.0577609]
[1728719182563,13.15,145.64,145.61,1.3541]
[1728719182765,13.15,145.64,145.62,5.05818234]
[1728719182969,13.15,145.64,145.63,5.05818234]
[1728719184173,16.5839,145.64,145.63,5.05818234]
[1728719191782,16.5839,145.64,145.61,1.3541]
[1728719192078,16.5839,145.64,145.62,5.05869571]
[1728719192276,16.5839,145.64,145.63,5.05869571]
[1728719195081,16.5839,145.64,145.61,1.3541]
[1728719195475,16.5839,145.64,145.62,5.05916645]
[1728719195677,16.5839,145.64,145.63,5.05916645]
[1728719202984,13.15,145.64,145.61,1.3541]
[1728719203186,3.4342,145.63,145.62,5.05999949]
[1728719205386,11.8842,145.63,145.58,3.4353]
[1728719205887,11.8842,145.63,145.59,5.06012221]
[1728719206087,11.8842,145.63,145.6,5.06012221]
[1728719206288,93.43095044,145.64,145.61,5.06012221]
[1728719206583,8.45,145.62,145.57,67.26728284]
[1728719206888,3.4346,145.61,145.58,5.0604152]
[1728719207083,3.4346,145.61,145.59,5.0604152]
[1728719207282,3.4346,145.61,145.6,5.0604152]
[1728719207481,3.4346,145.61,145.57,67.26728284]
[1728719207681,3.4346,145.61,145.6,5.06035437]
[1728719208682,3.4346,145.61,145.58,3.4353]
[1728719208999,3.4346,145.61,145.6,5.06026146]
[1728719209176,3.4346,145.61,145.6,5.06031063]
[1728719211991,3.4346,145.61,145.58,11.8853]
[1728719212185,3.4346,145.61,145.6,5.06017151]
[1728719214086,11.8842,145.63,145.6,5.06017151]
[1728719214289,8.45,145.63,145.61,5.06017151]
[1728719214485,8.45,145.63,145.62,5.06017151]
[1728719215487,11.8844,145.63,145.59,11.885]
[1728719215692,11.8844,145.63,145.6,5.06022307]
[1728719215989,11.8844,145.63,145.61,5.06022307]
[1728719216290,4.7,145.64,145.62,5.06022307]
[1728719216488,4.7,145.64,145.63,5.06022307]
[1728719217598,16.5841,145.64,145.63,5.06022307]
[1728719218791,16.5841,145.64,145.6,11.8848]
[1728719218992,16.5841,145.64,145.61,5.06068453]
[1728719219290,16.5841,145.64,145.62,5.06068453]
[1728719219490,16.5841,145.64,145.63,5.06068453]
[1728719220593,8.1341,145.64,145.63,5.06068453]
[1728719220793,16.5841,145.64,145.63,5.06068453]
[1728719220995,8.1341,145.64,145.63,5.06068453]
[1728719221297,16.5841,145.64,145.63,5.06068453]
[1728719221595,8.1341,145.64,145.63,5.06068453]
[1728719221898,16.5841,145.64,145.63,5.06068453]
[1728719224499,16.5841,145.64,145.59,11.8851]
[1728719224795,16.5841,145.64,145.6,5.06203575]
[1728719224998,16.5841,145.64,145.61,5.06206836]
[1728719225187,16.5841,145.64,145.62,5.06206836]
[1728719225391,16.5841,145.64,145.63,5.06206836]
[1728719227984,16.5841,145.64,145.58,11.8852]
[1728719228190,8.45,145.63,145.58,11.8852]
[1728719228391,8.45,145.63,145.59,5.06340694]
[1728719228587,8.45,145.63,145.6,5.06340694]
[1728719228795,8.45,145.63,145.61,5.06340694]
[1728719228999,8.45,145.63,145.62,5.06340694]
[1728719233788,13.13,145.63,145.62,5.06340694]
[1728719234509,13.13,145.63,145.59,3.4351]
[1728719234798,13.13,145.63,145.62,5.06362313]
[1728719236199,16.5642,145.63,145.62,5.06362313]
[1728719237998,16.5642,145.63,145.58,11.8853]
[1728719238300,16.5642,145.63,145.59,5.06411809]
[1728719238491,16.5642,145.63,145.6,5.06411809]
[1728719238690,16.5642,145.63,145.61,5.06411809]
[1728719238895,16.5642,145.63,145.62,5.06411809]
[1728719241302,16.5642,145.63,145.62,5.06435466]
[1728719243903,13.13,145.63,145.62,5.06435466]
[1728719244906,13.13,145.63,145.59,3.435]
[1728719245109,13.13,145.63,145.6,5.06458321]
[1728719245607,13.13,145.63,145.61,5.06458321]
[1728719245807,3.4347,145.61,145.57,67.26728284]
[1728719246006,8.45,145.6,145.58,5.06504207]
[1728719246210,8.45,145.6,145.57,67.26728284]
[1728719246415,8.45,145.6,145.58,5.06506969]
[1728719246714,8.45,145.6,145.59,5.06506969]
[1728719248012,8.45,145.6,145.57,67.26728284]
[1728719248201,8.45,145.6,145.58,5.06485015]
[1728719248408,8.45,145.6,145.59,5.06485015]
[1728719248906,16.5649,145.6,145.59,5.06485015]
[1728719249918,3.4353,145.58,145.57,1.4071]
[1728719250211,11.8853,145.58,145.57,6.47129191]
[1728719251407,11.8853,145.58,145.57,1.4071]
[1728719251607,11.8853,145.58,145.57,6.46739234]
[1728719252309,11.8853,145.58,145.57,5.06029234]
[1728719253413,11.8853,145.58,145.55,0.12502]
[1728719253718,11.8853,145.58,145.56,5.0575043]
[1728719253908,11.8853,145.58,145.57,5.0575043]
[1728719254111,11.8853,145.58,145.55,0.12502]
[1728719254411,11.8853,145.58,145.56,5.05748097]
[1728719254615,11.8853,145.58,145.55,0.12502]
[1728719254809,8.45,145.58,145.56,5.05636047]
[1728719255016,3.4356,145.57,145.55,0.12502]
[1728719255419,3.4356,145.57,145.56,5.05636047]
[1728719258317,3.4356,145.57,145.55,0.12502]
[1728719258514,3.4356,145.57,145.56,5.05354137]
[1728719259411,8.1156,145.57,145.55,0.12502]
[1728719260006,3.4358,145.56,145.55,0.12502]
[1728719260215,11.8858,145.56,145.55,5.17720416]
[1728719261620,11.8858,145.56,145.55,0.12502]
[1728719261917,11.8858,145.56,145.55,5.17564968]
[1728719262319,11.8858,145.56,145.55,0.12502]